Cogmind - Beta 16 @@@ ROGUE MODE // 2025.11.03 @ 13:19:22 Player: Mr.Man-Man Result: Destroyed by G-34 Mercenary with Small Laser Performance ------------- Evolutions (0) 0 Regions Visited (1) 200 Robots Destroyed (9) 45 Value Destroyed (145) 145 Prototype IDs (0) 0 Alien Tech Used (0) 0 Bonus (0) 0 TOTAL SCORE: 390 Bonus ------- None Cogmind --------- Core Integrity 0/250 Matter 231/300 Energy 0/100 System Corruption 0% Temperature Cool (6) Movement Core (50) Location -10/Materials Parts ------- > --- POWER (1) -------- (None) > --- PROPULSION (2) --- (None) > --- UTILITY (2) ------ ECM Suite Utility Shielding > --- WEAPON (2) ------- (None) > --- INVENTORY (5) ---- (None) Peak State ------------ > --- POWER ------------ Ion Engine > --- PROPULSION ------- Light Treads Light Treads > --- UTILITY ---------- Small Storage Unit Utility Shielding > --- WEAPON ----------- EM Pulse Gun Light Cannon > --- INVENTORY -------- Small Laser [Rating: 7] Favorites ----------- Power Ion Engine Engine Ion Engine Propulsion Light Treads Treads Light Treads Utility Small Storage Unit Device ECM Suite Storage Small Storage Unit Protection Utility Shielding Weapon EM Pulse Gun Energy Gun EM Pulse Gun Ballistic Cannon Light Cannon Build | -11 -10 ------- Run | Yrd Mat Slots Evolved . | . . Power . | . . Propulsion . | . . Utility . | . . Weapon . | . . Parts Attached 9 | 6 3 Power 1 | 1 . Engine 1 | 1 . Core . | . . Reactor . | . . Propulsion 2 | 2 . Treads 2 | 2 . Leg . | . . Wheel . | . . Hover . | . . Flight . | . . Utility 3 | 1 2 Device 1 | . 1 Storage 1 | 1 . Processor . | . . Hackware . | . . Protection 1 | . 1 Artifact . | . . Weapon 3 | 2 1 Energy Gun 2 | 2 . Energy Cannon . | . . Ballistic Gun . | . . Ballistic Cannon 1 | . 1 Launcher . | . . Special Weapon . | . . Impact Weapon . | . . Slashing Weapon . | . . Piercing Weapon . | . . Special Melee Weapon . | . . Unidentified Prototypes . | . . Parts Lost 6 | . 6 Power 1 | . 1 Propulsion 2 | . 2 Utility . | . . Weapon 3 | . 3 Highest Loss Streak 6 | . 6 To Critical Strikes . | . . Average Backups . | . . Power . | . . Propulsion . | . . Utility . | . . Weapon . | . . Tool/Special . | . . Unused Backups . | . . Power . | . . Propulsion . | . . Utility . | . . Weapon . | . . Tool/Special . | . . Average Slot Usage (%) 85 | . 85 Engine 11 | . 11 Treads 26 | . 26 Device 4 | . 4 Storage 9 | . 9 Protection 7 | . 7 Energy Gun 17 | . 17 Ballistic Cannon 7 | . 7 Peak Build Rating 7 | 6 7 Average Rating 5 | 4 6 On Entrance 3 | . 6 Avg Prop Armor Cover (%) . | . . Naked Turns . | . . Heaviest Build 16 | 13 16 Greatest Support 40 | 40 40 Greatest Overweight (x) . | . . Average Overweight (x) . | . . Largest Inventory Capacity 8 | 8 8 Average Capacity 6 | 6 7 Most Carried 2 | . 2 Average Carried . | . . Final Capacity 8 | 8 5 Final Carried . | . . Class Distribution -------------------- 100% | Mutant Dominant Class ---------------- Mutant | -10/Materials Resources | -11 -10 ----------- Run | Yrd Mat Matter Collected 245 | 242 3 Remotely . | . . Salvage Created 187 | . 187 Parts 16 | . 16 Haulers Intercepted . | . . Recyclers Shooed . | . . Parts Field Recycled . | . . Retrieved Matter . | . . Parts Self-Destructed . | . . Prevented . | . . Parts Restored . | . . Kills | -11 -10 ------- Run | Yrd Mat Combat Hostiles Destroyed 7 | . 7 Guns 5 | . 5 Cannons 2 | . 2 Classes Destroyed 4 | . 4 Worker 1 | . 1 Watcher 1 | . 1 Swarmer 5 | . 5 Grunt 2 | . 2 Best Kill Streak 8 | . 8 Combat Bots Only 7 | . 7 Max Kills in Single Turn 1 | . 1 Gunslinging . | . . Exploded . | . . Melee . | . . Uniques/NPCs Destroyed . | . . Combat | -11 -10 -------- Run | Yrd Mat Hostile Shots Fired 116 | . 116 Missed 31 | . 31 Hits 85 | . 85 Projectile 85 | . 85 Critical Strikes 2 | . 2 Damage Taken 862 | . 862 Core 251 | . 251 Absorbed by Shields . | . . Redirected to Shielding 4 | . 4 Core Remaining (%) 100 | 100 . Volleys Fired 20 | . 20 Largest 2 | . 2 Hottest 70 | . 70 Shots Fired 26 | . 26 Gun 15 | . 15 Cannon 11 | . 11 Launcher . | . . Special . | . . Kinetic 11 | . 11 Thermal 9 | . 9 Explosive . | . . Electromagnetic 6 | . 6 Robot Hit Streak 7 | . 7 Robot Miss Streak 3 | . 3 Penetration Max . | . . Secondary Targets . | . . Shots Hit Robots 13 | . 13 Core Hits 9 | . 9 Critical Kills . | . . Critical Parts Destroyed . | . . Critical Strikes . | . . Melee Attacks . | . . Impact . | . . Slashing . | . . Piercing . | . . Sneak Attacks . | . . Combat Hostiles . | . . Follow-up Attacks . | . . Damage Inflicted 238 | . 238 Guns 131 | . 131 Cannons 107 | . 107 Explosions . | . . Melee . | . . Ramming . | . . Kinetic 107 | . 107 Thermal 85 | . 85 Explosive . | . . Electromagnetic 46 | . 46 Impact . | . . Slashing . | . . Piercing . | . . Highest Corruption . | . . Average Corruption . | . . Corruption Purged . | . . Corruption Blocked . | . . Overload Shots . | . . Overflow Damage 15 | . 15 Projectiles 15 | . 15 Explosions . | . . Melee . | . . Knockbacks 2 | . 2 Impact . | . . Kinetic 2 | . 2 Secondary . | . . Self-Inflicted Damage . | . . Shots . | . . Rammed . | . . Targets Rammed . | . . Kicked . | . . Crushed . | . . Highest Temperature 114 | . 114 Average Temperature 60 | . 60 Received Heat Transfer 324 | . 324 Siege Activations . | . . Martial Activations . | . . Shielding Activations . | . . Robots Disrupted . | . . Combat Hostiles . | . . Robots Corrupted . | . . Combat Hostiles . | . . Parts Fried . | . . Impact Corruptions . | . . Robots Melted . | . . Combat Hostiles . | . . Parts Melted . | . . Heat Transferred 200 | . 200 Parts Sabotaged . | . . Parts Stolen . | . . Parts Stripped . | . . Power Chain Reactions . | . . Alert | -11 -10 ------- Run | Yrd Mat Maximum Alert Level . | . . Low Security (%) 100 | 100 100 Level 1 . | . . Level 2 . | . . Level 3 . | . . Level 4 . | . . Level 5 . | . . High Security . | . . Max Security . | . . Peak Influence 115 | . 115 Initial . | . . Average 12 | . 17 Influence Increases 187 | . 187 Destroy 0b10 Robot/C 140 | . 140 Destroy 0b10 Robot/NC 10 | . 10 Destroy Leader 22 | . 22 Disable Machine 15 | . 15 Influence Decreases 87 | . 87 Time Decay 27 | . 27 Lost Part 60 | . 60 Squads Dispatched . | . . Investigation . | . . Extermination . | . . Reinforcement . | . . Assault . | . . Garrison . | . . Intercept . | . . Searches Triggered . | . . Construction Impeded . | . . Haulers Reinforced . | . . Active Scanning Responses . | . . Cargo Convoy Interrupts . | . . Stealth | -11 -10 --------- Run | Yrd Mat Distress Signals 1 | . 1 Communications Jammed . | . . Distress Signals . | . . Times Spotted 14 | . 14 Peak Tracking Total 11 | . 11 Tactical Retreats 1 | . 1 ECM-based Alert Blocks 5 | . 5 Traps | -11 -10 ------- Run | Yrd Mat Traps Triggered . | . . Indirectly . | . . Trap Hack Attempts . | . . Triggered . | . . Disarmed . | . . Reprogrammed . | . . Reused . | . . Traps Extracted . | . . Installed . | . . Triggered . | . . Machines | -11 -10 ---------- Run | Yrd Mat Machines Disabled 1 | . 1 Max in Single Turn 1 | . 1 Machines Repaired . | . . Machines Dismantled . | . . Machines Sabotaged . | . . Overloaded Fab Kills . | . . Hacking | -11 -10 --------- Run | Yrd Mat Machines Accessed 1 | . 1 Terminals 1 | . 1 Fabricators . | . . Repair Stations . | . . Recycling Units . | . . Scanalyzers . | . . Garrison Access . | . . Total Hacks 1 | . 1 Successful 1 | . 1 Failed . | . . Catastrophic . | . . Database Lockouts . | . . Manual . | . . Terminals 1 | . 1 Fabricators . | . . Repair Stations . | . . Recycling Units . | . . Scanalyzers . | . . Garrison Access . | . . Terminal Hacks 1 | . 1 Locate Traps 1 | . 1 Fabricator Hacks . | . . Repair Station Hacks . | . . Recycling Unit Hacks . | . . Scanalyzer . | . . Garrison Access Hacks . | . . Unauthorized Hacks . | . . Terminals . | . . Fabricators . | . . Repair Stations . | . . Recycling Units . | . . Scanalyzers . | . . Garrison Access . | . . Data Cores Recovered . | . . Used . | . . Hacking Detections 1 | . 1 Full Trace Events . | . . Feedback Events . | . . Feedback Blocked . | . . Robot Schematics Acquired . | . . Robots Built . | . . Authchips . | . . Time . | . . Total Robot Build Rating . | . . Part Schematics Acquired . | . . Parts Built . | . . Authchips . | . . Time . | . . Total Part Build Rating . | . . Part Studies Acquired . | . . Parts Repaired . | . . Time . | . . Parts Recycled . | . . Recycled Matter . | . . Retrieved Matter . | . . Retrieved Components . | . . Parts Scanalyzed . | . . Part Schematics Acquired . | . . Parts Damaged . | . . Bothacking | -11 -10 ------------ Run | Yrd Mat Used RIF Installer . | . . Robots Hacked . | . . Non-combat . | . . Combat . | . . Robot Hacks Applied . | . . Relay Couplers Released . | . . Fabnet Peak Effective % . | . . Robots Rewired . | . . Allies Hacked . | . . Hacks Repelled . | . . Allies | -11 -10 -------- Run | Yrd Mat Total Allies . | . . Largest Group . | . . Highest-Rated Group . | . . Highest-Rated Ally . | . . Total Orders . | . . Ally Attacks . | . . Total Damage . | . . Kills . | . . Allies Corrupted . | . . Allies Melted . | . . Intel | -11 -10 ------- Run | Yrd Mat Active Infowar (turns) 69 | . 69 ECM 69 | . 69 Robot Analysis Total . | . . Derelict Logs Recovered . | . . Drone Launches . | . . Drone Recoveries . | . . Exploration | -11 -10 ------------- Run | Yrd Mat Turns Passed 311 | 94 217 Spaces Moved 153 | 56 97 Core 3 | 3 . Treads 150 | 53 97 Legs . | . . Wheels . | . . Hover . | . . Flight . | . . Fastest Speed 50 | 50 160 Average Speed 157 | 154 160 Slowest Speed 160 | 160 160 Overloaded Moves . | . . Propulsion Burnouts . | . . Robots Hopped . | . . Potential Cave-ins . | . . Cave-ins Triggered . | . . Exploration Rate (%) 12 | 4 20 Regions Visited 1 Branch Regions . Pre-discovered Areas . | . . Known Exits Taken . | . . Unknown Exits Taken 1 | 1 . Scrap Searched . | . . Spaces Dug . | . . Terrain Destroyed . | . . Melee . | . . Projectile . | . . AOE . | . . Terrain Rammed . | . . Walls Destroyed . | . . Machines Disabled . | . . Actions | -11 -10 --------- Run | Yrd Mat Total 195 | 61 134 Wait 9 | . 9 Move 152 | 55 97 Hop . | . . Pick Up 1 | . 1 Fast Attach 8 | 6 2 Attach 2 | . 2 Detach 2 | . 2 Swap . | . . Drop 1 | . 1 Fire 20 | . 20 Melee . | . . Ram . | . . Kick . | . . Crush . | . . Escape Stasis . | . . Rewire . | . . Trap . | . . Miscellaneous . | . . Route ------- -11/Scrapyard -10/Materials History --------- Turn | Location | Event 14 | -11/Scrapyard | Discovered new exit (range 16) 95 | -11/Scrapyard | Entered Materials 293 | -10/Materials | Core integrity fell below 50% 308 | -10/Materials | Core integrity fell below 20% 312 | -10/Materials | Destroyed by G-34 Mercenary with Small Laser Last Messages --------------- 00283_ S-10 Pest destroyed. 00283_ K-01 Serf collects debris. 00284_ R-06 Scavenger collects Wheel. 00285_ Lgt. Cannon destroyed. [Achievement: There's More Where That Came From] 00287_ R-06 Scavenger collects Flight Unit. 00290_ S-10 Pest destroyed. 00291_ K-01 Serf collects debris. 00292_ S-10 Pest destroyed. 00292_ R-06 Scavenger collects Lgt. Ion Engine. 00294_ K-01 Serf collects debris. 00297_ Lgt. Treads destroyed. 00298_ G-34 Mercenary destroyed. 00298_ K-01 Serf collects debris. 00300_ G-34 Mercenary destroyed. 00301_ K-01 Serf collects debris. 00304_ K-01 Serf destroyed. 00304_ Lgt. Treads destroyed. 00305_ Sml. Laser destroyed. 00306_ Dropped Sml. Storage Unit. Map ----- +----------------------------------------------------+ | ????????????????# T #????#""""" #?????????? | | ????????????????# #????#""""" #?????????? | | ????????????????# " #????#""""" #?????????? | | ????????????????#""" #????#""""" #?????????? | | ????????????????#"" #????#""""" #####?????? | | ????????????????#""" #????#""""" # #?????? | | ????????????????# "" #????#""""" # #?????? | | ????????????????#""" #????# # #?????? | | ????????????????#""" #????######+### #?????? | | ????????????????#""" ######## #?????? | | ????????????????# " # """ # #?????? | | ????????????????# # """ # #?????? | | ?????????#^^ ???# # """ # ########?????? | | ????? # ^ #######+### # #????????????? | | ????? # # #????????????? | | ?????????# ^ + + #????????????? | | ?????????#^^ # # #????????????? | | ?????????###### # # #????????????? | | ??????????????# ######## #????????????? | | ??????????????+ #????????????? | | ??????????????# #????????????? | | ??????????????# t """* !!! #????????????? | | ??????????????### " "%= !! #????????????? | | ????????????????# ""%% %*!! #????????????? | | ????????????????# =g %= +????????????? | | ????????????????# %*%%@%= % #????????????? | | ????????????????# ####a%g##"T"###????????????? | | ????????????????# #??#=r ######??????????????? | | ????????????????# #??# u#???????????????????? | | ????????????????+ T??# #???????????????????? | | ????????????????# #??# u???????????????????? | | ????????????????# #??# ??????????????????? | | ????????????????# #??# ?????????????????? | | ????????????????##/#???#######+????????????????? | | ????????????????? ??????????? ???????????????? | | ????????????????? ???????????? #??????????????? | | ????????????????? ?????????????#??????????????? | | ????????????????? ????????????????????????????? | | ???????????????? ????????????????????????????? | | ????????????????? ????????????????????????????? | | ???????????????????????????????????????????????? | | ???????????????????????????????????????????????? | | ???????????????????????????????????????????????? | | ???????????????????????????????????????????????? | | ???????????????????????????????????????????????? | | ???????????????????????????????????????????????? | | ???????????????????????????????????????????????? | | ???????????????????????????????????????????????? | | ???????????????????????????????????????????????? | | ???????????????????????????????????????????????? | +----------------------------------------------------+ Best States ------------- Heat Dissipation 25 Energy Generation 10 Energy Capacity 250 Matter Stores 282 Matter Capacity 300 Sight Range 16 Terrain Scan Density 10 ECM Strength 1 Utility Shielding 33 Evasion (%) 40 Recoil Reduction 2 Item Schematics ----------------- None Robot Schematics ------------------ None Fabricated ------------ Nothing Repaired ---------- Nothing Studied --------- None Alien Tech Used ----------------- None Achievements -------------- There's More Where That Came From Challenges ------------ None Game ------ Seed MediumNuclearJets Manual? 0 Play Time 00:04:03 Cumulative 9.8 hours Start 2025.11.03 @ 13:16:27 End 2025.11.03 @ 13:19:22 Sessions 1 Manual Loads 0 Difficulty Rogue Special Mode None Game No. 42 Rogue 39 Adventurer 0 Explorer 3 Win Type - Total 0 Types 0/0/0/0/0/0/0/0/0/0 Lore% 9 Gallery% 20 Achievement% 11 Wizard Run 0 Options --------- Layout 1 ASCII 0 Keyboard 1 Movement Numpad Keybinds 0 Fullscreen 2 Font 32/SmallcapsGlow Map View 38x17 Zoom Use 70% Tactical HUD 1 Map Filters NONE Filters NONE Steam 1 RUN: 87b75e42-a2f5-406b-b0ad-c00a86d8acda